[Event "French-ch Youth U18 2022"]
[Site "Agen"]
[Date "2022.04.23"]
[Round "8.7"]
[White "Courjal, Pauline"]
[Black "Bellahcene, Sofia"]
[Result "0-1"]
[ECO "B30"]
[WhiteElo "1976"]
[BlackElo "1813"]
[Annotator "TA"]
[PlyCount "99"]
[EventDate "2022.04.17"]
[EventType "swiss"]
[EventCountry "FRA"]
[SourceTitle "playchess.com"]
[Source "ChessBase"]
[SourceQuality "1"]
[TimeControl "5400+30"]

{[%evp 9,99,27,43,18,26,8,28,18,21,25,6,3,52,23,30,30,47,46,50,27,40,37,55,31,40,40,32,24,66,44,29,31,32,32,58,54,43,52,52,23,32,0,0,0,0,0,0,6,60,58,66,74,58,56,186,170,220,214,213,221,211,218,272,276,268,262,360,265,796,784,856,856,835,845,821,824,1027,1012,993,843,1317,1236,1688,1681,1696,1631,6111,6003,5214,5114,1648,1482]} 1. e4 {[%emt 0:00:02]} c5 {[%emt 0:00:20]} 2. Nf3 {[%emt 0:00:05]} Nc6 {[%emt 0:00:35]} 3. c3 {[%emt 0:00:06]} e5 {[%emt 0:01:34]} 4. Bc4 {[%emt 0:04:01]} d6 {[%emt 0:04:04]} 5. d3 {[%emt 0:03:26]} h6 {[%emt 0:00:45]} 6. Nbd2 {[%emt 0:03:08][%cal Ob2b4,Bb1d2,Bd2f1,Bf1g3,Bg3h5][%mdl 32] B22: Sicilian: 2 c3.} Nf6 {[%emt 0:01:58]} 7. Nf1 {[%emt 0:04:32]} a6 {[%emt 0:01:42]} 8. a4 {[%emt 0:05:06] [#] White has an edge.} Be6 $146 {[%emt 0:03:58]} ({Predecessor:} 8... Be7 9. Ne3 O-O 10. O-O Rb8 11. Bd2 b5 12. axb5 axb5 13. Bd5 Qc7 14. Qe2 Bd7 {1-0 (57) Tantsiura,M (2030)-Torosjan,A (1890) Ukraine 2010}) 9. Bxe6 {[%emt 0:06:24]} fxe6 {[%emt 0:00:11]} 10. Nh4 {[%emt 0:00:04]} Ne7 {[%emt 0:02:01]} (10... Rg8 $11) 11. Ng3 {[%emt 0:03:13]} g5 {[%emt 0:07:04] [#]} 12. Nh5 $1 {[%emt 0:01:14]} Nh7 {[%emt 0:00:43]} (12... Nxh5 13. Qxh5+) 13. Nf3 {[%emt 0:02:16][%cal Bh4f3,Bf3h2,Bh2g4,Bg4e5,Be5c4,Bc4a3][%mdl 32]} Ng6 {[%emt 0:02:47]} 14. h3 {[%emt 0:13:51]} Nf6 {[%emt 0:05:00]} 15. Nh2 {[%emt 0:00:14]} Nf4 {[%emt 0:00:48]} 16. Bxf4 {[%emt 0:02:33]} exf4 {[%emt 0:00:48]} 17. e5 {[%emt 0:03:36]} dxe5 {[%emt 0:07:39]} 18. Qe2 {[%emt 0:01:41]} Rh7 {[%emt 0:07:47]} 19. Nxf6+ {[%emt 0:02:00]} Qxf6 {[%emt 0:01:13]} 20. Ng4 {[%emt 0:00:03][%csl LRe5,LRf6]} Qf5 {[%emt 0:02:24]} 21. Nxe5 {[%emt 0:08:18]} h5 {[%emt 0:03:27]} 22. Nc4 {[%emt 0:03:36]} O-O-O {[%emt 0:05:12]} 23. O-O-O {[%emt 0:00:05][%cal Be1c1,Bc1c2,Bc2d2][%mdl 32]} (23. Kd2 {looks sharper.} Rf7 24. f3 Kb8 25. Kc2) 23... b5 {[%emt 0:12:10]} 24. axb5 {[%emt 0:07:04]} axb5 {[%emt 0:00:02]} 25. Na3 {[%emt 0:00:20]} b4 {[%emt 0:05:14]} 26. Nc4 {[%emt 0:02:32]} Ra7 {[%emt 0:04:23]} 27. Qf3 {[%emt 0:01:52] [#] Strongly threatening Qc6+.} Kc7 {[%emt 0:01:45] Inhibits Qc6+. And now ...bxc3 would win. Active counter play!} 28. Kc2 {[%emt 0:05:22] Ra1 is the strong threat.} Qd5 {[%emt 0:04:08]} (28... g4 $11 29. Qe4 (29. hxg4 hxg4 30. Qe4 bxc3 $11) 29... bxc3) 29. Ra1 $1 $14 {[%emt 0:02:33]} ({Much weaker is} 29. Qxh5 bxc3 30. Rhe1 (30. bxc3 $2 Ra2+ 31. Kc1 Qd7 $19) 30... cxb2 31. Qf7+ Qd7 32. Qxd7+ Kxd7 $15) 29... Rxa1 {[%emt 0:01:37]} 30. Rxa1 {[%emt 0:00:04]} Qxf3 {[%emt 0:00:16]} 31. gxf3 {[%emt 0:00:04][%mdl 4096] Endgame KRB-KRN} b3+ {[%emt 0:09:46] A mistake that costs the game.} (31... Kd7 $14) 32. Kd2 $18 {[%emt 0:00:51]} Rb8 {[%emt 0:00:19]} (32... Kd7 {keeps fighting.} 33. Ra7+ Ke8) 33. Ra6 {[%emt 0:00:32]} Kd7 {[%emt 0:00:47]} 34. Ne5+ {[%emt 0:00:06]} Kc7 {[%emt 0:01:06]} 35. Rc6+ {[%emt 0:00:11]} Kb7 {[%emt 0:00:47]} 36. Rxe6 {[%emt 0:00:06]} Ra8 {[%emt 0:00:30]} 37. Nc4 {[%emt 0:00:58]} Ra1 {[%emt 0:00:34]} 38. Rg6 {[%emt 0:00:37]} Rg1 $2 {[%emt 0:02:40]} (38... Kc7 39. Rxg5 h4) 39. Rf6 {[%emt 0:00:04][%cal Bg6f6,Bf6f8,Bf8g8,Bg8g5,Bg5h5][%mdl 32] White is clearly winning.} Rg2 {[%emt 0:00:57]} 40. Ke2 {[%emt 0:00:12]} Rh2 {[%emt 0:00:27]} 41. Rxf8 {[%emt 0:00:08]} Rxh3 {[%emt 0:00:03] KRN-KR} 42. Rg8 {[%emt 0:00:19]} Rh1 {[%emt 0:00:28]} 43. Rxg5 {[%emt 0:00:06]} h4 {[%emt 0:00:03]} 44. Rh5 {[%emt 0:00:20]} h3 {[%emt 0:00:05]} 45. d4 {[%emt 0:00:08]} cxd4 {[%emt 0:00:14]} 46. cxd4 {[%emt 0:00:04]} h2 {[%emt 0:00:09]} 47. Na5+ {[%emt 0:01:11]} Ka6 {[%emt 0:00:18]} 48. Nxb3 {[%emt 0:00:10]} Rb1 {[%emt 0:00:43]} 49. Rxh2 {[%emt 0:00:04]} Rxb2+ {[%emt 0:00:07]} 50. Nd2 {[%emt 0:00:02][%mdl 32768] Weighted Error Value: White=0.11 (very precise) /Black=0.25 (precise) . Loss on time!?} 0-1

[Event "French-ch Youth U18 2022"]
[Site "Agen"]
[Date "2022.04.23"]
[Round "8.8"]
[White "Sumarriva Paulin, Laura"]
[Black "Moracchini, Margaux"]
[Result "1-0"]
[ECO "A48"]
[WhiteElo "1925"]
[BlackElo "1994"]
[Annotator "TA"]
[PlyCount "67"]
[EventDate "2022.04.17"]
[EventType "swiss"]
[EventCountry "FRA"]
[SourceTitle "playchess.com"]
[Source "ChessBase"]
[SourceQuality "1"]
[TimeControl "5400+30"]

{[%evp 9,67,-5,8,2,0,-8,0,0,17,4,18,15,14,0,7,-10,-10,-15,-10,-12,27,33,16,18,51,-30,87,89,71,72,106,106,82,81,106,97,88,79,138,133,178,95,105,56,142,136,188,126,177,178,1353,1323,6075,6039,5577,4396,2046,1991,29998,29999]} 1. d4 {[%emt 0:00:45]} Nf6 {[%emt 0:00:16]} 2. Nf3 {[%emt 0:00:26]} g6 {[%emt 0:00:42]} 3. Bf4 {[%emt 0:00:33]} Bg7 {[%emt 0:00:52]} 4. Nc3 {[%emt 0:00:27]} d5 {[%emt 0:04:29]} 5. Nb5 {[%emt 0:02:14]} Na6 {[%emt 0:00:59]} 6. e3 {[%emt 0:01:20] D00: 1 d4 d5: Unusual lines.} O-O {[%emt 0:04:49] The main line 6...0-0 scores better than 6...c6.} 7. h3 {[%emt 0:03:02]} Bf5 {[%emt 0:04:35]} 8. Bd3 {[%emt 0:01:20] The position is equal.} Bxd3 {[%emt 0:02:06]} (8... Ne4 {is interesting.} 9. O-O c6 10. Nc3 c5) 9. cxd3 {[%emt 0:01:19]} c6 {[%emt 0:06:27]} 10. Nc3 {[%emt 0:00:31] [#]} c5 $146 {[%emt 0:03:42]} ({Predecessor:} 10... Nc7 11. O-O Ne6 12. Bh2 a5 13. a3 Ne8 14. b4 Nd6 15. Qb3 axb4 16. axb4 Nc7 {1-0 (35) Bluebaum,M (2640)-Matinian,N (2454) Chess.com INT 2021}) 11. dxc5 {[%emt 0:12:16]} Nxc5 {[%emt 0:00:33]} 12. d4 {[%emt 0:04:11]} Nce4 {[%emt 0:01:50]} 13. Nxe4 {[%emt 0:03:43]} dxe4 {[%emt 0:05:15]} 14. Nd2 {[%emt 0:17:36]} Nh5 {[%emt 0:14:45]} 15. Bh2 {[%emt 0:09:29]} Qd5 {[%emt 0:03:50]} 16. O-O {[%emt 0:02:31]} Rac8 {[%emt 0:06:52]} 17. Qa4 {[%emt 0:09:12]} (17. Qb3 $14 e6 18. Rac1) 17... b5 {[%emt 0:09:07]} (17... e5 $11 {remains equal.}) 18. Qb4 $16 {[%emt 0:14:07]} Rc2 {[%emt 0:03:43]} 19. Nb3 {[%emt 0:00:44]} Rfc8 {[%emt 0:06:22]} 20. Qxe7 {[%emt 0:03:36]} Bf8 {[%emt 0:04:50]} 21. Qxa7 {[%emt 0:03:11]} Rxb2 {[%emt 0:00:57]} 22. Qb6 {[%emt 0:06:01]} Rcc2 {[%emt 0:02:47] [#] ...Qf5 is the strong threat.} 23. Qb8 {[%emt 0:00:22]} Ng7 {[%emt 0:06:59]} ({Black should play} 23... Rxa2 24. Rxa2 Rxa2) 24. Nc5 $1 {[%emt 0:00:59]} Ne6 {[%emt 0:00:47]} 25. Nxe6 {[%emt 0:01:00]} (25. Be5 $18) 25... Qxe6 {[%emt 0:00:02]} 26. Rad1 {[%emt 0:01:50]} (26. a3 $16) 26... Qf5 {[%emt 0:02:27]} (26... Qc8 $14) 27. Bg3 {[%emt 0:00:33][%cal Bh2g3,Bg3e5,Be5f6][%mdl 32]} ({Worse is} 27. Bd6 Rc8 28. Qb6 Qe6 $11) 27... Qd5 {[%emt 0:00:54]} (27... Rxa2 $16 28. Rb1 b4) 28. a3 {[%emt 0:00:16]} (28. Rb1 $18 {And now Rxb2 would win.} Rxa2 29. Rxb5) 28... Rb3 {[%emt 0:01:30]} (28... b4 $16) 29. Rb1 $18 {[%emt 0:00:35][%cal Bd1b1,Bb1c1,Bc1c7,Bc7g7][%mdl 32] [#] aiming for Rxb3.} Rcb2 {[%emt 0:00:44]} (29... Rxa3 30. Rxb5 Qa8) 30. Rbc1 {[%emt 0:00:18] White wants to mate with Rc8.} Kg7 {[%emt 0:01:00]} 31. Be5+ {[%emt 0:00:29]} f6 {[%emt 0:00:24]} 32. Rc7+ {[%emt 0:00:15]} Kg8 {[%emt 0:00:12]} 33. Bxf6 {[%emt 0:00:35] Intending Rg7+ and mate.} Rxa3 {[%emt 0:00:50]} 34. Rg7+ {[%emt 0:00:21] Weighted Error Value: White=0.17 (very precise) /Black=0.54} 1-0

[Event "French-ch Youth U18 2022"]
[Site "Agen"]
[Date "2022.04.24"]
[Round "9.1"]
[White "Girel, Joseph"]
[Black "Fardet, Elouan"]
[Result "1/2-1/2"]
[ECO "E63"]
[WhiteElo "2394"]
[BlackElo "2162"]
[Annotator "TA"]
[PlyCount "36"]
[EventDate "2022.04.17"]
[EventType "swiss"]
[EventCountry "FRA"]
[SourceTitle "playchess.com"]
[Source "ChessBase"]
[SourceQuality "1"]
[TimeControl "5400+30"]

{[%evp 19,36,27,28,39,40,33,33,19,45,44,36,42,41,27,39,20,19,18,35]} 1. d4 {[%emt 0:01:23]} Nf6 {[%emt 0:00:15]} 2. c4 {[%emt 0:00:10]} g6 {[%emt 0:00:03]} 3. Nf3 {[%emt 0:00:13]} Bg7 {[%emt 0:00:04]} 4. g3 {[%emt 0:00:30]} O-O {[%emt 0:00:07]} 5. Bg2 {[%emt 0:00:06]} d6 {[%emt 0:00:04]} 6. Nc3 {[%emt 0:00:19]} Nc6 {[%emt 0:00:10]} 7. O-O {[%emt 0:00:11]} a6 {[%emt 0:00:03]} 8. d5 {[%emt 0:00:31]} Na5 {[%emt 0:00:05]} 9. b3 {[%emt 0:00:12]} Rb8 {[%emt 0:02:09]} 10. Bd2 {[%emt 0:00:17]} c5 {[%emt 0:00:19]} 11. dxc6 {[%emt 0:00:16] E63: King's Indian: Fianchetto: Panno Variation with 7...a6.} Nxc6 {[%emt 0:00:38]} 12. Rc1 {[%emt 0:00:50]} Bf5 {[%emt 0:00:44]} 13. Ng5 {[%emt 0:02:08] White is slightly better.} h6 {[%emt 0:07:39]} 14. Nge4 {[%emt 0:00:30]} Nxe4 {[%emt 0:00:58]} 15. Nxe4 {[%emt 0:00:12]} Qd7 {[%emt 0:02:10]} 16. Bc3 {[%emt 0:01:58] [#]} Bh3 $146 ({Predecessor:} 16... Rfe8 17. Re1 Rbc8 18. Bxg7 Kxg7 19. Nc3 Bh3 20. Bh1 Qc7 21. Qd2 Qa5 22. Red1 Be6 {½-½ (37) Lederer,Y (2259)-Saleem,A (2042) Chicago 2017}) 17. Bxg7 {[%emt 0:02:02]} Kxg7 {[%emt 0:09:23]} 18. Qd2 {[%emt 0:02:51]} Bxg2 {[%emt 0:07:04] Weighted Error Value: White=0.06 (flawless) /Black=0.06 (flawless)} 1/2-1/2

[Event "French-ch Youth U18 2022"]
[Site "Agen"]
[Date "2022.04.24"]
[Round "9.2"]
[White "Decuigniere, Tom"]
[Black "Eveno, Nathan"]
[Result "1/2-1/2"]
[ECO "D30"]
[WhiteElo "2292"]
[BlackElo "2107"]
[Annotator "TA"]
[PlyCount "77"]
[EventDate "2022.04.17"]
[EventType "swiss"]
[EventCountry "FRA"]
[SourceTitle "playchess.com"]
[Source "ChessBase"]
[SourceQuality "1"]
[TimeControl "5400+30"]

{[%evp 9,77,37,34,34,46,20,25,24,32,5,24,20,26,18,28,0,8,-66,-40,-104,-26,-89,-82,-83,-43,-51,-27,-29,-25,-197,-193,-194,-192,-181,-181,-211,-188,-168,-169,-169,-170,-178,-101,-136,-140,-137,-116,-132,0,0,0,-38,16,30,21,17,36,0,0,0,0,0,0,0,0,0,0,0,0,0]} 1. d4 {[%emt 0:00:03]} d5 {[%emt 0:00:05]} 2. c4 {[%emt 0:00:04]} e6 {[%emt 0:00:03]} 3. Nf3 {[%emt 0:00:04]} c6 {[%emt 0:00:14]} 4. e3 {[%emt 0:03:06]} f5 {[%emt 0:03:17]} 5. Bd3 {[%emt 0:02:58]} Bd6 {[%emt 0:02:10]} 6. b3 {[%emt 0:02:50] A84: Dutch Defence: 2 c4 Miscellaneous.} Nh6 {[%emt 0:05:55] [#]} 7. a4 $146 {[%emt 0:10:48]} ({Predecessor:} 7. O-O Qe7 8. a4 a5 9. Ba3 Bxa3 10. Nxa3 O-O 11. Nc2 Nd7 12. Qd2 Nf6 13. Ne5 Ne4 14. Bxe4 fxe4 {½-½ (56) Saduakassova,D (2481)-Eljanov,P (2663) Douglas 2019}) 7... a5 {[%emt 0:12:47]} 8. Ba3 {[%emt 0:01:14] White has an edge.} Nf7 {[%emt 0:02:17]} 9. Qc2 {[%emt 0:06:07]} Bxa3 {[%emt 0:08:08]} 10. Nxa3 {[%emt 0:00:09]} Qf6 {[%emt 0:01:53]} 11. Qc3 {[%emt 0:08:14]} Nd7 {[%emt 0:05:10]} 12. Nc2 {[%emt 0:00:40]} O-O {[%emt 0:05:19]} 13. c5 {[%emt 0:00:56]} (13. O-O $11) 13... e5 $15 {[%emt 0:11:21]} 14. Nd2 {[%emt 0:09:47]} (14. Be2 $15) 14... exd4 {[%emt 0:09:19]} (14... f4 $17 {And now ...e4 would win.} 15. O-O f3 16. gxf3 (16. Nxf3 $2 e4 $19) 16... Ng5) 15. exd4 {[%emt 0:00:45]} (15. Nxd4 $11 Ng5 16. Bxf5 Nxc5 17. Qxc5 Bxf5 18. Qc3) 15... Re8+ $17 {[%emt 0:00:43]} 16. Kd1 {[%emt 0:03:59]} Qg5 {[%emt 0:02:59]} 17. g3 {[%emt 0:01:45]} f4 {[%emt 0:02:32]} 18. Kc1 {[%emt 0:00:50]} Nf6 {[%emt 0:00:49]} 19. f3 $2 {[%emt 0:03:06]} (19. Kb2 $11 {and White stays safe.}) 19... fxg3 $19 {[%emt 0:03:22]} 20. hxg3 {[%emt 0:00:05]} Qxg3 {[%emt 0:00:19]} 21. Kb2 {[%emt 0:00:06][%cal Of3f4]} Qf4 {[%emt 0:00:07]} 22. Ne1 {[%emt 0:03:29]} Bf5 {[%emt 0:09:05]} 23. Ng2 {[%emt 0:00:44]} Qg5 {[%emt 0:00:05]} 24. Rag1 {[%emt 0:02:14] [#]} Bxd3 $1 {[%emt 0:01:22]} 25. Qxd3 {[%emt 0:00:05]} Kf8 {[%emt 0:04:09]} (25... Nh6 $19 26. Ne1 Qf4) 26. f4 {[%emt 0:06:55]} Qg4 {[%emt 0:01:56]} 27. Nf3 {[%emt 0:04:37]} Re4 {[%emt 0:01:33]} 28. Rh4 {[%emt 0:03:45] [#]} Qg3 {[%emt 0:00:38]} ({Better is} 28... Qf5 $1 $17 29. Ne3 Qe6) 29. Qf1 $36 {[%emt 0:00:04][%cal Og2e3][%mdl 2048] Ne3! is the strong threat. White has the initiative.} Ng4 {[%emt 0:02:55] Against Ne3. aiming for ...Rae8.} 30. Nge1 {[%emt 0:02:50]} (30. Rxh7 $5 {[%cal Rg2h4]} Rae8 31. Ka3 $14) 30... Qf2+ {[%emt 0:01:37]} (30... Ne3 $15 31. Rxg3 Nxf1) 31. Qxf2 {[%emt 0:00:05]} Nxf2 {[%emt 0:00:03]} 32. Rxh7 {[%emt 0:00:19]} Rxf4 {[%emt 0:00:57]} (32... Rae8 {feels hotter.} 33. Rgxg7 Rxf4 34. Ne5 Nxe5 35. dxe5 Rxe5 36. Rxb7 Kg8) 33. Rhxg7 {[%emt 0:02:59] Threatens to win with Rg8+.} (33. Ne5 {keeps more tension.} Re8 34. Rgxg7 Nxe5 35. dxe5 Rxe5 36. Rxb7 Kg8 37. Rbg7+) 33... Re8 {[%emt 0:00:56] The position is equal.} 34. Rg8+ {[%emt 0:01:51]} Ke7 {[%emt 0:00:01]} 35. Rxe8+ {[%emt 0:00:39]} Kxe8 {[%emt 0:00:02]} 36. Rg8+ {[%emt 0:00:05]} Kd7 {[%emt 0:00:36]} 37. Rf8 {[%emt 0:01:13]} Nd3+ {[%emt 0:01:32]} 38. Nxd3 {[%emt 0:00:07]} Rxf3 39. Kc2 {[%emt 0:04:48] Black had all chances to win.  Weighted Error Value: White=0.25 (precise) /Black=0.20 (precise)} 1/2-1/2

[Event "French-ch Youth U18 2022"]
[Site "Agen"]
[Date "2022.04.24"]
[Round "9.3"]
[White "Mathieu, Phileas"]
[Black "Mathez, Florian"]
[Result "1-0"]
[ECO "C77"]
[WhiteElo "2323"]
[BlackElo "2009"]
[Annotator "TA"]
[PlyCount "53"]
[EventDate "2022.04.17"]
[EventType "swiss"]
[EventCountry "FRA"]
[SourceTitle "playchess.com"]
[Source "ChessBase"]
[SourceQuality "1"]
[TimeControl "5400+30"]

{[%evp 18,53,12,10,17,0,20,17,120,97,143,150,125,145,209,208,272,240,268,233,339,342,327,347,344,338,440,439,445,435,462,463,592,602,650,461,467,452]} 1. e4 {[%emt 0:00:46]} e5 {[%emt 0:00:05]} 2. Nf3 {[%emt 0:00:24]} Nc6 {[%emt 0:00:06]} 3. Bb5 {[%emt 0:00:01][%cal Bf1b5,Bb5a4,Ba4b3][%mdl 32]} a6 {[%emt 0:00:08]} 4. Ba4 {[%emt 0:00:01]} Nf6 {[%emt 0:00:22]} 5. d3 {[%emt 0:00:12]} b5 {[%emt 0:00:13]} 6. Bb3 {[%emt 0:00:01]} Be7 {[%emt 0:00:13]} 7. a4 {[%emt 0:00:04]} b4 {[%emt 0:09:51]} 8. Nbd2 {[%emt 0:00:13]} O-O {[%emt 0:02:50]} 9. O-O {[%emt 0:00:13]} d6 {[%emt 0:03:53]} 10. a5 {[%emt 0:05:19]} Be6 {[%emt 0:11:54] C84: Closed Ruy Lopez: Unusual White 6th moves.} 11. Nc4 {[%emt 0:00:46]} Nd7 {[%emt 0:03:31]} 12. Be3 {[%emt 0:04:33]} d5 {[%emt 0:11:47] [#]} (12... Bf6 $11 {keeps the balance.}) 13. Ba4 $1 $16 {[%emt 0:01:56]} Ncb8 {[%emt 0:14:56]} (13... Na7 $142) (13... Nd4 14. Ncxe5) 14. Ncxe5 {[%emt 0:01:28] &Bianco is more active.} Nxe5 {[%emt 0:04:38]} 15. Nxe5 {[%emt 0:00:03] [#]} dxe4 $146 {[%emt 0:00:58]} (15... d4 $16) ({Predecessor:} 15... Bd6 16. Nf3 dxe4 17. Ng5 Qf6 18. dxe4 Be5 19. Qh5 h6 20. Nxe6 fxe6 21. Rad1 Bd6 {1-0 (40) Fercec,N (2439)-Ljubicic,M (1872) Hum na Sutli 2019}) 16. dxe4 $18 {[%emt 0:02:48][%cal Bd3e4,Be4e5][%mdl 32]} Bf6 {[%emt 0:02:44]} 17. Nd3 {[%emt 0:03:20]} Bc4 {[%emt 0:00:58]} 18. e5 {[%emt 0:05:39]} Be7 {[%emt 0:06:04]} (18... Bxd3 $142 19. exf6 (19. Qxd3 Qxd3 20. cxd3 Bxe5 $16) (19. cxd3 Bxe5 20. Qf3 c6 $16) 19... Bxf1) 19. Qg4 {[%emt 0:02:52]} Be6 {[%emt 0:01:07]} 20. Qg3 {[%emt 0:03:33]} Bh4 {[%emt 0:03:28]} 21. Qf3 {[%emt 0:00:25]} Bd5 {[%emt 0:00:20]} 22. Qg4 {[%emt 0:00:18] White is clearly winning.} Be6 {[%emt 0:01:00]} 23. Qxb4 {[%emt 0:00:48]} Nd7 {[%emt 0:00:19]} 24. Rad1 {[%emt 0:02:47]} Rb8 {[%emt 0:01:48]} 25. Qc3 {[%emt 0:00:32]} Qc8 {[%emt 0:00:56]} 26. Bc6 {[%emt 0:03:49]} Rd8 {[%emt 0:01:38]} 27. Ba7 {[%emt 0:00:44] Black got outplayed after the opening.  Weighted Error Value: White=0.15 (very precise) /Black=0.49} 1-0

[Event "French-ch Youth U18 2022"]
[Site "Agen"]
[Date "2022.04.24"]
[Round "9.4"]
[White "Harutyunyan, Safar"]
[Black "Larmet, Nino"]
[Result "0-1"]
[ECO "C75"]
[WhiteElo "2217"]
[BlackElo "1986"]
[Annotator "TA"]
[PlyCount "104"]
[EventDate "2022.04.17"]
[EventType "swiss"]
[EventCountry "FRA"]
[SourceTitle "playchess.com"]
[Source "ChessBase"]
[SourceQuality "1"]
[TimeControl "5400+30"]

{[%evp 18,104,25,23,18,33,24,-4,-17,-12,-12,-15,6,-14,-8,-20,-6,-63,-37,-37,-49,-47,8,0,18,-23,-13,-12,0,-135,-100,-222,-226,-222,-200,-230,-42,-101,-99,-84,-102,-110,-60,-202,-206,-252,-206,-199,-185,-186,-200,-192,-124,-226,-230,-229,-228,-383,-360,-400,-395,-542,-535,-528,-520,-733,-723,-1139,-1119,-985,-774,-1090,-716,-2216,-1751,-1715,-1464,-29987,-29988,-29988,-29989,-29989,-29990,-29994,-29995,-29996,-29997,-29997,-29995]} 1. e4 {[%emt 0:00:03]} e5 {[%emt 0:00:43]} 2. Nf3 {[%emt 0:00:06]} Nc6 {[%emt 0:00:01]} 3. Bb5 {[%emt 0:00:07]} a6 {[%emt 0:00:45]} 4. Ba4 {[%emt 0:00:05]} d6 {[%emt 0:00:02]} 5. c3 {[%emt 0:00:43]} Bd7 {[%emt 0:00:04]} 6. O-O {[%emt 0:00:29]} g6 {[%emt 0:00:16]} 7. d4 {[%emt 0:00:27]} Bg7 {[%emt 0:00:03]} 8. Re1 {[%emt 0:00:53]} Nf6 $1 {[%emt 0:00:05][%mdl 4] outshines the older 8...Nge7.} 9. Nbd2 {[%emt 0:09:48]} O-O {[%emt 0:00:21]} 10. h3 {[%emt 0:06:04]} exd4 {[%emt 0:01:05] C60: Ruy Lopez: Unusual Black 3rd moves and 3...g6.} 11. cxd4 {[%emt 0:01:20]} Nb4 {[%emt 0:00:02]} 12. Bb3 {[%emt 0:18:23]} Nd3 {[%emt 0:11:36] The position is equal.} 13. Re3 {[%emt 0:00:38]} Nxc1 {[%emt 0:00:03]} 14. Rxc1 {[%emt 0:00:11] [#]} Bc6 $146 {[%emt 0:16:38]} ({Predecessor:} 14... c6 15. Re1 d5 16. exd5 cxd5 17. Nf1 Qb6 18. Ne3 Be6 19. Ne5 Rfc8 20. Qd3 a5 {1-0 (55) Almasi,Z (2707)-Stevic,H (2616) Heraklion 2017}) 15. d5 {[%emt 0:10:26]} Bd7 {[%emt 0:12:15]} 16. Qc2 {[%emt 0:03:24]} Rc8 {[%emt 0:00:46]} 17. e5 {[%emt 0:08:24]} (17. Rce1 $11) 17... dxe5 $15 {[%emt 0:03:13]} 18. Nxe5 {[%emt 0:00:05]} Bf5 {[%emt 0:00:47]} 19. Qc4 {[%emt 0:02:20]} Ne8 {[%emt 0:06:04]} (19... Bh6 $15 20. Re2 Qd6) 20. g4 {[%emt 0:05:02]} Nd6 {[%emt 0:00:12]} 21. Qe2 {[%emt 0:04:48]} Bd7 {[%emt 0:00:27]} 22. f4 $1 {[%emt 0:05:44]} Bh6 $36 {[%emt 0:13:01][%mdl 2048] Black is pushing.} 23. Rf1 {[%emt 0:01:09]} (23. Qf2 $11) 23... Bb5 $17 {[%emt 0:03:23]} 24. Ndc4 {[%emt 0:00:37]} (24. Nd3 $17 {keeps fighting.}) 24... f6 $19 {[%emt 0:00:41]} 25. Nf3 {[%emt 0:06:16]} Bxf4 {[%emt 0:00:45]} 26. Re6 {[%emt 0:00:10]} c6 $2 {[%emt 0:11:08]} ({Black should try} 26... f5 $1 $19 {Strongly threatening ...Ne4.} 27. a4 fxg4 $1 28. hxg4 Bd7) 27. Rxd6 {[%emt 0:05:38]} Qxd6 $17 {[%emt 0:03:30]} (27... Bxd6 $6 28. Qe6+ Kg7 29. Nxd6 Bxf1 30. Nxc8 $11 (30. Kxf1 $2 Rc7 $19)) 28. Nxd6 {[%emt 0:01:28]} Bxe2 {[%emt 0:00:02] A strong pair of Bishops.} 29. Nxc8 {[%emt 0:01:05]} Bxf1 {[%emt 0:01:54]} (29... Rxc8 $17 30. dxc6+ Kf8 31. cxb7 Rb8) 30. Ne7+ {[%emt 0:01:53]} (30. dxc6+ $15 Kh8 31. Kxf1 Rxc8 32. cxb7) 30... Kf7 $19 {[%emt 0:01:14]} 31. d6+ {[%emt 0:00:37]} Ke8 {[%emt 0:00:10]} 32. Kxf1 {[%emt 0:01:32]} Kd7 {[%emt 0:02:15] Prevents Nc8.} (32... Bxd6 33. Ng8) 33. h4 {[%emt 0:01:44]} Bxd6 {[%emt 0:00:16]} ({Weaker is} 33... Kxd6 34. h5 Kxe7 35. hxg6 hxg6 36. Nh4) 34. Ng8 {[%emt 0:00:08]} Bf4 {[%emt 0:04:23]} (34... c5 $19 {aiming for ...Bf4.} 35. Ke2 b5) 35. Kg2 {[%emt 0:02:09] [#]} (35. Nd4 $17 {was called for.} Kd6 36. Ne6 Rxg8 37. Nxf4) 35... Bc1 $1 {[%emt 0:00:30]} 36. h5 {[%emt 0:01:18]} gxh5 {[%emt 0:02:49]} ({And not} 36... Bxb2 37. Nh4) 37. gxh5 {[%emt 0:00:02]} (37. Nd4 {is the only way for White.} Kd6 38. Kg3) 37... a5 {[%emt 0:00:13]} 38. a4 {[%emt 0:00:32]} b5 {[%emt 0:00:56]} 39. Kg3 {[%emt 0:01:29]} bxa4 {[%emt 0:02:32]} 40. Bc4 {[%emt 0:00:06]} Bxb2 {[%emt 0:00:04]} 41. Kf4 {[%emt 0:01:29]} Rb8 {[%emt 0:01:27] And now ...Rb4 would win.} 42. Kf5 {[%emt 0:01:04]} Rb4 {[%emt 0:00:01]} 43. Ba2 {[%emt 0:01:05]} Rb5+ {[%emt 0:00:05]} 44. Kg4 {[%emt 0:00:12]} a3 {[%emt 0:00:39] White must now prevent ...Bc3.} 45. Nh6 {[%emt 0:01:02]} Bc3 {[%emt 0:00:10]} 46. Bg8 {[%emt 0:00:30]} Rb2 {[%emt 0:00:09]} 47. Bxh7 {[%emt 0:00:19]} a2 {Black mates.} 48. Bf5+ Kc7 {[%emt 0:01:11]} 49. Nf7 {[%emt 0:00:15]} a1=Q {[%emt 0:00:02]} 50. h6 {[%emt 0:00:05]} Rg2+ {[%emt 0:00:09]} 51. Kh5 {[%emt 0:00:07]} Qh1+ {[%emt 0:00:07]} 52. Nh4 {[%emt 0:00:03]} Be1 {[%emt 0:00:18] Weighted Error Value: White=0.74/Black=0.37} 0-1